bitfinex-derivatives/quotes_SOLF0:USTF0_20250914
["timestamp","ask_amount","ask_price","bid_price","bid_amount"]
[1757831619823,7.8081265,246.87,246.75,6.81]
[1757831620318,7.8081265,246.87,246.76,6.81]
[1757831623423,7.8081265,246.87,246.77,6.81]
[1757831624225,17.29,246.91,246.78,6.81]
[1757831624419,17.29,246.91,246.8,6.79317317]
[1757831624625,17.29,246.91,246.81,6.81]
[1757831625726,6.51,246.89,246.81,6.81]
[1757831626924,6.51,246.89,246.8,6.79317317]
[1757831627123,1.2981265,246.9,246.79,6.79317317]
[1757831627324,6.51,246.89,246.79,6.79317317]
[1757831627817,1.2981265,246.86,246.78,13.60317317]
[1757831628017,1.2981265,246.82,246.74,13.60317317]
[1757831628230,6.51,246.81,246.74,6.81]
[1757831630830,6.51,246.81,246.73,6.79317317]
[1757831631632,6.51,246.81,246.72,6.79317317]
[1757831631834,6.51,246.81,246.71,13.60317317]
[1757831632034,6.89,246.81,246.71,13.60317317]
[1757831633233,6.89,246.81,246.72,6.82]
[1757831633434,6.89,246.81,246.72,13.61317317]
[1757831634426,6.89,246.81,246.73,6.82]
[1757831634628,6.89,246.81,246.73,13.61317317]
[1757831636529,6.89,246.81,246.73,6.82]
[1757831638234,0.8318436,246.8,246.73,6.82]
[1757831643243,7.7218436,246.81,246.73,6.82]
[1757831644639,7.5518436,246.84,246.73,6.82]
[1757831650349,6.72,246.84,246.73,6.82]
[1757831651446,0.8318436,246.81,246.73,6.82]
[1757831651649,6.72,246.8,246.73,6.82]
[1757831652953,6.72,246.8,246.7,13.66317317]
[1757831654951,0.8318436,246.78,246.7,13.66317317]
[1757831655249,0.8318436,246.75,246.66,6.79317317]
[1757831655454,7.5518436,246.75,246.67,6.87]
[1757831659256,0.8318436,246.69,246.62,6.79317317]
[1757831659454,6.72,246.68,246.61,6.87]
[1757831659654,0.8318436,246.69,246.61,6.87]
[1757831661154,6.72,246.7,246.61,6.87]
[1757831661354,7.5518436,246.7,246.61,6.87]
[1757831663251,7.5518436,246.7,246.58,6.79317317]
[1757831663252,6.72,246.65,246.56,6.79317317]
[1757831663555,6.72,246.65,246.55,6.87]
[1757831666959,24.32,246.69,246.55,6.87]
[1757831667260,6.72,246.69,246.58,6.87]
[1757831667859,6.72,246.69,246.58,7.7018436]
[1757831670562,7.7218436,246.73,246.62,6.82]
[1757831673265,6.89,246.73,246.62,6.82]
[1757831674564,0.8318436,246.75,246.62,6.82]
[1757831676564,0.8318436,246.75,246.65,6.82]
[1757831678162,272.24,246.77,246.59,6.82]
[1757831678163,6.89,246.68,246.59,6.82]
[1757831678467,0.8318436,246.66,246.59,6.82]
[1757831678666,6.89,246.65,246.59,6.82]
[1757831679172,22.82,246.73,246.51,0.70565334]
[1757831679173,6.89,246.59,246.52,6.79317317]
[1757831679469,6.89,246.59,246.51,0.70565334]
[1757831680470,6.89,246.59,246.5,1000.0]
[1757831680665,0.8318436,246.57,246.5,1000.0]
[1757831681172,6.89,246.59,246.5,1000.0]
[1757831681366,0.8318436,246.54,246.5,1000.0]
[1757831681568,6.89,246.53,246.5,1000.0]
[1757831681769,0.8318436,246.54,246.5,1000.0]
[1757831682075,6.89,246.53,246.5,1000.0]
[1757831682369,6.89,246.57,246.5,1000.0]
[1757831683374,7.7218436,246.57,246.5,1000.0]
[1757831685878,6.89,246.57,246.5,1000.0]
[1757831686280,7.34,246.59,246.51,6.82]
[1757831686478,0.8318436,246.6,246.51,6.82]
[1757831687877,14.58,246.61,246.51,6.82]
[1757831688082,0.8318436,246.6,246.51,6.82]
[1757831692884,6.89,246.62,246.51,6.82]
[1757831693089,14.3818436,246.62,246.51,6.82]
[1757831694492,13.55,246.62,246.51,6.82]
[1757831695592,6.77,246.6,246.51,6.82]
[1757831696492,6.77,246.6,246.5,1000.0]
[1757831696689,18.12,246.61,246.5,1000.0]
[1757831697691,6.54,246.6,246.5,1000.0]
[1757831698091,1.30196951,246.6,246.5,1000.0]
[1757831698292,6.54,246.59,246.5,1000.0]
[1757831698695,6.54,246.59,246.51,6.89]
[1757831698895,24.72,246.58,246.51,6.89]
[1757831700190,6.54,246.59,246.51,6.89]
[1757831701189,6.54,246.59,246.5,1000.0]
[1757831701591,7.52,246.6,246.5,1000.0]
[1757831701995,6.54,246.59,246.5,1000.0]
[1757831702798,7.52,246.6,246.5,1000.0]
[1757831703092,6.54,246.59,246.5,1000.0]
[1757831703695,7.52,246.6,246.5,1000.0]
[1757831704206,6.54,246.59,246.5,1000.0]
[1757831704797,7.52,246.6,246.5,1000.0]
[1757831705695,6.54,246.59,246.5,1000.0]
[1757831706196,7.52,246.6,246.5,1000.0]
[1757831706697,6.54,246.59,246.5,1000.0]
[1757831707406,15.48,246.58,246.5,1000.0]
[1757831707692,6.54,246.57,246.51,6.89]
[1757831707890,6.54,246.65,246.51,6.89]
[1757831708090,23.3,246.64,246.51,6.89]
[1757831708288,6.54,246.63,246.51,6.89]
[1757831710700,6.54,246.61,246.51,6.89]
[1757831712403,47.38,246.6,246.51,6.89]
[1757831712601,6.54,246.61,246.51,6.89]
[1757831712796,52.58,246.59,246.51,6.89]
[1757831713898,6.54,246.61,246.51,6.89]
[1757831714103,56.72,246.58,246.51,6.89]
[1757831714301,60.3,246.59,246.51,6.89]
[1757831714509,6.54,246.58,246.5,1000.0]
[1757831714801,101.18,246.57,246.5,1000.0]
[1757831715604,6.54,246.6,246.5,1000.0]
[1757831715903,101.26,246.57,246.5,1000.0]
[1757831718203,6.54,246.6,246.5,1000.0]
[1757831718504,101.16,246.59,246.51,6.89]
[1757831719708,101.18,246.6,246.51,6.89]
[1757831720411,101.14,246.6,246.51,6.89]
[1757831720805,101.14,246.6,246.5,1000.0]
[1757831721005,1.30196951,246.59,246.5,1000.0]
[1757831721413,6.54,246.58,246.5,1000.0]
[1757831722310,1.30196951,246.59,246.5,1000.0]
[1757831722509,6.54,246.57,246.5,1000.0]
[1757831723005,101.14,246.6,246.5,1000.0]
[1757831723006,1.30196951,246.55,246.5,1000.0]
[1757831723203,6.54,246.54,246.5,1000.0]
[1757831723408,108.2,246.53,246.5,1000.0]
[1757831723607,108.2,246.53,246.5,1000.4]
[1757831723812,108.2,246.53,246.5,1000.0]
[1757831724013,6.54,246.51,246.5,541.38]
[1757831724416,6.54,246.51,246.5,458.27701955]
[1757831725010,6.54,246.51,246.5,451.22701955]
[1757831725716,1.30196951,246.52,246.5,451.22701955]
[1757831726216,101.66,246.53,246.5,451.22701955]
[1757831727009,101.66,246.53,246.5,458.11701955]
[1757831727208,101.66,246.53,246.5,451.22701955]
[1757831727411,101.66,246.53,246.51,6.89]
[1757831727618,101.66,246.53,246.5,451.22701955]
[1757831727810,101.66,246.53,246.51,7.02]
[1757831728117,101.66,246.53,246.5,451.22701955]
[1757831728118,101.66,246.53,246.5,458.24701955]
[1757831729012,6.59,246.52,246.5,451.22701955]
[1757831729319,101.66,246.53,246.5,458.24701955]
[1757831729517,6.8,246.52,246.5,451.22701955]
[1757831730208,101.66,246.53,246.5,457.59701955]
[1757831730416,101.66,246.53,246.5,451.22701955]
[1757831730822,101.66,246.53,246.51,6.37]
[1757831731816,272.46,246.61,246.51,108.37]
[1757831732014,102.0,246.59,246.52,6.37]
[1757831732320,102.0,246.59,246.55,6.37]
[1757831732321,0.02831718,246.58,246.55,6.37]
[1757831732916,0.02831718,246.58,246.54,0.03072908]
[1757831733117,0.02831718,246.58,246.55,6.37]
[1757831733421,0.02831718,246.58,246.55,102.0]
[1757831733616,0.02831718,246.58,246.56,6.37]
[1757831733821,0.02831718,246.58,246.55,102.0]
[1757831734022,0.02831718,246.58,246.56,6.37]
[1757831734817,0.02831718,246.58,246.55,102.0]
[1757831735018,0.02831718,246.58,246.56,6.37]
[1757831735323,0.02831718,246.58,246.57,108.31]
[1757831738428,0.02831718,246.58,246.57,108.23]
[1757831739522,32.96,246.64,246.57,108.23]
[1757831739727,62.68,246.71,246.58,6.37]
[1757831740027,62.68,246.71,246.55,6.79317317]
[1757831740028,62.68,246.71,246.6,6.37]
[1757831740228,62.68,246.71,246.62,6.37]
[1757831740529,62.68,246.71,246.62,108.17]
[1757831740928,62.68,246.71,246.64,0.02693797]
[1757831745026,6.8,246.7,246.64,0.02693797]
[1757831745420,1.30196951,246.69,246.64,0.02693797]
[1757831746123,6.8,246.68,246.64,0.02693797]
[1757831746520,1.30196951,246.69,246.64,0.02693797]
[1757831746720,6.8,246.68,246.64,0.02693797]
[1757831746918,1.30196951,246.69,246.64,0.02693797]
[1757831747428,6.8,246.68,246.64,0.02693797]
[1757831748323,1.30196951,246.69,246.64,0.02693797]
[1757831748624,6.8,246.68,246.64,0.02693797]
[1757831749131,1.30196951,246.69,246.64,0.02693797]
[1757831749329,6.8,246.68,246.64,0.02693797]
[1757831749529,1.30196951,246.69,246.64,0.02693797]
[1757831749832,6.8,246.7,246.64,0.02693797]
[1757831756533,7.72273749,246.68,246.64,0.02693797]
[1757831757436,0.83273749,246.68,246.64,0.02693797]
[1757831757629,6.89,246.67,246.64,0.02693797]
[1757831758024,0.83273749,246.68,246.64,0.02693797]
[1757831758233,0.83273749,246.68,246.64,6.51693797]
[1757831758432,0.83273749,246.68,246.65,6.49]
[1757831759135,70.02273749,246.71,246.65,6.49]
[1757831766550,12.13531244,246.82,246.65,6.49]
[1757831766551,6.51,246.75,246.65,6.49]
[1757831766950,0.83273749,246.74,246.65,6.49]
[1757831778258,0.83273749,246.77,246.65,6.49]
[1757831778967,0.83273749,246.77,246.69,0.02598612]
[1757831779166,0.83273749,246.77,246.7,6.49]
[1757831780970,12.17,246.9,246.7,6.49]
[1757831781265,78.88165205,248.16,246.9,6.49]
[1757831781266,12.32244795,247.01,246.9,6.49]
[1757831781468,18.83244795,247.01,246.9,6.49]
[1757831781661,0.83273749,247.0,246.9,6.49]
[1757831781968,18.83244795,247.01,246.9,6.49]
[1757831781969,0.83273749,246.97,246.9,6.49]
[1757831782266,6.51,246.96,246.93,0.02981646]
[1757831783470,7.34273749,246.97,246.93,0.02981646]
[1757831783769,6.51,246.96,246.93,0.02981646]
[1757831786569,7.34273749,246.98,246.93,6.51981646]
[1757831790469,0.83273749,246.98,246.93,0.02981646]
[1757831790671,0.83273749,247.01,246.94,6.96]
[1757831791967,0.83273749,246.99,246.94,6.96]
[1757831792169,7.53273749,246.99,246.93,0.02981646]
[1757831793263,6.7,246.95,246.93,0.02981646]
[1757831793669,7.53273749,246.96,246.86,6.96]
[1757831794077,0.83273749,246.96,246.92,0.0286969]
[1757831794466,0.83273749,246.93,246.92,0.0286969]
[1757831794975,0.83273749,246.93,246.86,6.96]
[1757831795170,0.83273749,246.93,246.9,0.02718198]
[1757831796468,7.53273749,246.93,246.9,0.02718198]
[1757831796668,6.7,246.98,246.91,6.96]
[1757831796872,0.83273749,246.95,246.9,0.02718198]
[1757831797072,0.83273749,246.92,246.87,6.96]
[1757831797274,7.53273749,246.92,246.87,6.96]
[1757831797475,6.7,246.92,246.9,0.02907989]
[1757831798275,0.83273749,246.95,246.9,0.02907989]
[1757831798480,6.7,246.94,246.9,0.02907989]
[1757831799376,0.83273749,246.95,246.9,0.02907989]
[1757831799577,6.7,246.94,246.9,0.02907989]
[1757831800080,0.83273749,246.95,246.9,0.02907989]
[1757831800273,6.7,246.94,246.9,0.02907989]
[1757831800474,0.83273749,246.95,246.9,0.02907989]
[1757831800876,6.7,246.94,246.9,0.02907989]
[1757831801379,6.7,246.91,246.9,0.02907989]
[1757831801776,6.7,246.91,246.81,6.96]
[1757831802279,0.83273749,246.92,246.88,0.02983398]
[1757831802478,6.7,246.91,246.88,0.02983398]
[1757831804179,7.53273749,246.89,246.88,0.02983398]
[1757831805881,6.7,246.84,246.77,6.96]
[1757831806079,6.7,246.81,246.71,6.96]
[1757831806274,6.7,246.81,246.71,19.25127104]
[1757831806475,6.7,246.81,246.71,6.96]
[1757831810076,7.16,246.89,246.71,6.96]
[1757831810077,0.83273749,246.83,246.71,6.96]
[1757831810278,7.53273749,246.83,246.71,6.96]
[1757831811684,6.7,246.83,246.71,6.96]
[1757831812083,6.7,246.83,246.71,7.79273749]
[1757831812881,6.7,246.83,246.71,6.96]
[1757831814685,0.83273749,246.81,246.71,6.96]
[1757831814885,6.6,246.8,246.71,6.96]
[1757831815681,6.6,246.77,246.65,6.8]
[1757831815986,6.6,246.77,246.68,6.8]
[1757831820787,6.53,246.81,246.68,6.8]
[1757831820991,6.53,246.81,246.7,1.30010821]
[1757831821192,6.53,246.81,246.71,6.8]
[1757831826590,6.53,246.81,246.65,6.8]
[1757831827791,7.83010821,246.81,246.65,6.8]
[1757831831894,1.30010821,246.77,246.65,6.8]
[1757831832189,6.53,246.76,246.65,6.8]
[1757831836904,6.53,246.76,246.61,6.8]
[1757831837503,1.30010821,246.73,246.61,6.8]
[1757831837702,6.53,246.72,246.61,6.8]
[1757831838998,6.53,246.68,246.56,6.8]
[1757831851612,6.75,246.65,246.52,6.93]
[1757831870020,6.75,246.65,246.53,6.93]
[1757831872726,6.36,246.69,246.53,6.93]
[1757831874824,6.36,246.69,246.54,99.92]
[1757831875121,6.36,246.69,246.55,6.63]
[1757831876125,6.36,246.71,246.57,6.63]
[1757831878526,6.52,246.69,246.57,7.46274357]
[1757831881229,6.52,246.69,246.57,11.95251957]
[1757831882526,6.52,246.69,246.58,6.63]
[1757831882830,6.52,246.69,246.58,11.119776]
[1757831883032,6.52,246.69,246.59,6.63]
[1757831886135,6.52,246.66,246.59,6.63]
[1757831886336,0.83274357,246.67,246.55,11.119776]
[1757831886737,6.52,246.66,246.55,11.119776]
[1757831887234,6.52,246.66,246.56,4.489776]
[1757831887834,6.52,246.63,246.55,11.119776]
[1757831888834,6.52,246.63,246.55,6.63]
[1757831889737,0.83274357,246.61,246.55,6.63]
[1757831897540,6.52,246.63,246.55,6.63]
[1757831897742,0.83274357,246.64,246.55,6.63]
[1757831898144,0.83274357,246.66,246.55,6.63]
[1757831899842,6.52,246.65,246.55,6.63]
[1757831901546,6.52,246.65,246.55,11.119776]
[1757831901747,6.52,246.65,246.56,6.63]
[1757831904453,0.83274357,246.63,246.56,6.63]
[1757831904952,7.35274357,246.63,246.56,6.63]
[1757831906253,7.35274357,246.63,246.53,4.489776]
[1757831906452,0.83274357,246.63,246.52,11.119776]
[1757831906657,6.52,246.62,246.52,6.63]
[1757831910056,6.84,246.59,246.52,6.63]
[1757831917567,6.84,246.56,246.52,6.63]
[1757831917759,0.83274357,246.57,246.51,6.75]
[1757831918163,7.67274357,246.6,246.51,6.75]
[1757831924070,6.84,246.6,246.51,6.75]
[1757831930075,4.45318644,246.73,246.54,6.75]
[1757831930076,6.84,246.63,246.54,6.75]
[1757831930280,6.84,246.63,246.55,6.75]
[1757831932785,7.40274357,246.67,246.56,6.58]
[1757831933077,33.98274357,246.7,246.58,6.58]
[1757831933583,7.40274357,246.7,246.58,4.489776]
[1757831933879,7.40274357,246.7,246.6,4.489776]
[1757831934084,7.40274357,246.7,246.61,6.58]
[1757831938580,6.57,246.7,246.61,6.58]
[1757831938787,99.84,246.72,246.61,6.58]
[1757831939080,99.84,246.72,246.62,6.9]
[1757831940182,6.72,246.74,246.62,6.9]
[1757831940783,6.72,246.74,246.64,6.9]
[1757831940979,1.300915,246.84,246.64,6.9]
[1757831941182,198.45044157,246.78,246.65,6.9]
[1757831942279,98.63044157,246.78,246.65,6.9]
[1757831943181,98.63044157,246.78,246.65,11.389776]
[1757831943387,6.72,246.75,246.65,6.9]
[1757831945986,99.8,246.78,246.65,6.9]
[1757831946579,6.72,246.79,246.65,6.9]
[1757831957084,8.020915,246.79,246.65,6.9]
[1757831957289,6.72,246.74,246.6,6.9]
[1757831963891,6.72,246.74,246.6,12.690691]
[1757831964091,6.72,246.74,246.62,6.9]
[1757831965189,6.72,246.74,246.63,6.9]
[1757831967199,6.72,246.78,246.63,6.9]
[1757831967598,6.72,246.78,246.63,11.389776]
[1757831967798,6.72,246.78,246.64,6.43]
[1757831971100,6.72,246.78,246.64,10.919776]
[1757831971300,6.98,246.79,246.65,6.43]
[1757831973192,6.98,246.79,246.65,10.919776]
[1757831973397,1.300915,246.8,246.65,10.919776]
[1757831973903,6.98,246.79,246.65,10.919776]
[1757831974102,6.98,246.79,246.66,6.43]
[1757831974303,6.98,246.79,246.66,4.489776]
[1757831974503,6.98,246.79,246.67,6.43]
[1757831975806,6.98,246.79,246.67,10.919776]
[1757831976806,6.98,246.79,246.68,6.43]
[1757831977207,6.98,246.79,246.68,10.919776]
[1757831977408,1.300915,246.8,246.68,10.919776]
[1757831978203,6.98,246.79,246.68,10.919776]
[1757831978804,1.300915,246.8,246.68,10.919776]
[1757831979006,6.98,246.79,246.68,10.919776]
[1757831979597,1.300915,246.8,246.68,10.919776]
[1757831979803,6.98,246.79,246.68,10.919776]
[1757831979998,1.300915,246.8,246.68,10.919776]
[1757831980204,6.98,246.79,246.69,4.489776]
[1757831983108,6.98,246.79,246.7,4.489776]
[1757831984211,6.98,246.79,246.7,10.919776]
[1757831985109,1.300915,246.8,246.7,10.919776]
[1757831985814,6.98,246.79,246.7,10.919776]
[1757831986005,1.300915,246.8,246.7,10.919776]
[1757831987207,6.98,246.79,246.7,10.919776]
[1757831989119,6.98,246.79,246.71,4.489776]
[1757831990011,6.98,246.79,246.73,4.489776]
[1757831990314,6.98,246.79,246.75,6.43]
[1757831990809,1.300915,246.83,246.75,6.43]
[1757831991015,6.98,246.82,246.75,6.43]
[1757831994816,6.8,246.85,246.75,4.489776]
[1757831995017,6.8,246.85,246.79,6.6]
[1757831995216,6.8,246.85,246.79,11.089776]
[1757831996428,6.8,246.85,246.79,6.6]
[1757831999017,1.300915,246.86,246.79,6.6]
[1757831999217,98.37398012,246.89,246.79,11.089776]
[1757831999524,98.37398012,246.89,246.8,6.58]
[1757832000412,98.37398012,246.89,246.8,11.069776]
[1757832000611,98.37398012,246.89,246.81,6.58]
[1757832001720,6.77,246.89,246.81,6.58]
[1757832004021,6.77,246.89,246.82,4.489776]
[1757832004221,6.77,246.89,246.82,6.58]
[1757832006026,0.83125154,246.87,246.8,4.489776]
[1757832006229,0.83125154,246.87,246.75,38.99649676]
[1757832006230,0.83125154,246.87,246.79,6.58]
[1757832006429,6.77,246.89,246.79,6.58]
[1757832008434,0.83125154,246.88,246.79,6.58]
[1757832009744,6.77,246.89,246.79,6.58]
[1757832009939,7.60125154,246.89,246.79,6.58]
[1757832010242,6.77,246.89,246.8,6.58]
[1757832010632,6.77,246.89,246.8,11.069776]
[1757832010843,6.77,246.89,246.81,6.58]
[1757832011640,0.83125154,246.87,246.81,6.58]
[1757832011838,371.82,246.95,246.77,6.58]
[1757832011839,6.77,246.83,246.77,6.58]
[1757832014640,0.83125154,246.84,246.77,6.58]
[1757832015847,6.77,246.83,246.77,6.58]
[1757832016546,0.83125154,246.84,246.77,6.58]
[1757832018951,6.77,246.87,246.77,6.58]
[1757832019341,272.24,246.95,246.78,11.069776]
[1757832019342,0.83125154,246.9,246.78,11.069776]
[1757832019547,0.83125154,246.9,246.8,6.58]
[1757832019747,6.77,246.89,246.8,6.58]
[1757832020146,0.83125154,246.87,246.8,6.58]
[1757832020348,6.77,246.86,246.8,6.58]
[1757832021248,0.83125154,246.87,246.8,6.58]
[1757832021855,6.77,246.94,246.8,7.41125154]
[1757832022045,6.77,246.92,246.8,7.41125154]
[1757832022246,0.83125154,246.9,246.8,7.41125154]
[1757832022441,6.77,246.89,246.8,6.58]
[1757832027852,0.83125154,246.88,246.76,6.93]
[1757832028152,7.01,246.87,246.76,6.93]
[1757832030150,7.84125154,246.87,246.76,6.93]
[1757832031851,7.01,246.87,246.78,0.83125154]
[1757832032049,7.01,246.87,246.79,6.82]
[1757832036162,6.91,246.83,246.73,6.82]
[1757832036456,6.91,246.81,246.73,6.82]
[1757832037457,6.91,246.78,246.66,6.82]
[1757832038257,6.91,246.78,246.67,6.82]
[1757832055371,6.58,246.76,246.67,6.82]
[1757832055970,0.83125154,246.74,246.67,6.82]
[1757832056265,6.58,246.73,246.67,6.82]
[1757832057470,6.58,246.73,246.62,6.67]
[1757832059675,6.58,246.73,246.62,11.9237698]
[1757832059872,6.58,246.73,246.63,6.68]
[1757832060568,6.5,246.78,246.63,7.98049628]
[1757832064078,6.5,246.78,246.63,62.26049628]
[1757832064381,6.5,246.8,246.64,6.68]
[1757832069980,1.30049628,246.77,246.64,6.68]
[1757832070283,6.5,246.76,246.64,6.68]
[1757832076396,6.5,246.74,246.58,6.68]
[1757832078894,31.4,246.74,246.58,6.68]
[1757832081495,6.5,246.74,246.58,6.68]
[1757832081696,48.48,246.74,246.58,6.68]
[1757832088006,6.5,246.74,246.58,6.68]
[1757832099607,1.30049628,246.72,246.58,6.68]
[1757832099812,6.83,246.71,246.58,6.68]
[1757832103310,1.30049628,246.68,246.58,6.68]
[1757832103502,6.83,246.67,246.52,17.43890261]
[1757832103707,6.83,246.67,246.53,6.74]
[1757832110209,108.74644555,246.74,246.54,4.489776]
[1757832110210,8.13049628,246.73,246.54,4.489776]
[1757832110416,6.83,246.72,246.56,6.74]
[1757832112117,6.83,246.72,246.56,11.229776]
[1757832112319,7.0,246.72,246.57,6.41]
[1757832117918,1.30049628,246.69,246.57,6.41]
[1757832118115,6.84,246.68,246.57,6.41]
[1757832120419,0.83280029,246.67,246.57,6.41]
[1757832121023,6.84,246.66,246.57,6.41]
[1757832124626,7.67280029,246.66,246.57,6.41]
[1757832127331,0.83280029,246.7,246.57,7.24280029]
[1757832127521,0.83280029,246.7,246.6,6.67]
[1757832128330,7.67280029,246.7,246.6,6.67]
[1757832130027,6.84,246.66,246.6,6.67]
[1757832130830,6.84,246.66,246.55,4.489776]
[1757832131031,6.84,246.66,246.56,6.67]
[1757832133935,6.84,246.6,246.52,11.159776]
[1757832134129,6.84,246.6,246.52,6.67]
[1757832146050,0.83280029,246.64,246.52,6.67]
[1757832146353,0.83280029,246.64,246.54,6.67]
[1757832146949,6.84,246.65,246.54,6.67]
[1757832151554,0.83280029,246.64,246.54,6.67]
[1757832151858,6.77,246.63,246.54,6.67]
[1757832155559,7.60280029,246.67,246.54,6.67]
[1757832157656,7.60280029,246.67,246.53,0.83280029]
[1757832157657,6.77,246.67,246.57,6.35]
[1757832158560,6.77,246.72,246.58,6.35]
[1757832158765,0.83280029,246.71,246.58,6.35]
[1757832159466,6.77,246.7,246.58,6.35]
[1757832161566,6.77,246.75,246.59,0.83280029]
[1757832161763,0.83280029,246.73,246.62,0.83280029]
[1757832161960,0.83280029,246.73,246.63,6.35]
[1757832162660,6.77,246.75,246.63,6.35]
[1757832162860,0.83280029,246.74,246.63,6.35]
[1757832164663,6.77,246.73,246.63,6.35]
[1757832173673,0.83280029,246.74,246.63,6.35]
[1757832174165,0.83280029,246.74,246.63,7.18280029]
[1757832174968,0.83280029,246.79,246.63,7.18280029]
[1757832175176,0.83280029,246.79,246.67,6.65]
[1757832176664,6.35,246.93,246.77,6.65]
[1757832176869,6.35,246.87,246.77,6.65]
[1757832178370,0.83280029,246.86,246.77,6.65]
[1757832179276,6.35,246.87,246.77,6.65]
[1757832180674,0.83280029,246.89,246.8,7.02]
[1757832180977,7.45280029,246.89,246.8,7.02]
[1757832181180,6.62,246.85,246.8,7.02]
[1757832181374,7.45280029,246.86,246.8,7.02]
[1757832182477,6.62,246.86,246.8,7.02]
[1757832187081,7.91913703,246.9,246.8,7.02]
[1757832191085,6.62,246.89,246.75,7.02]
[1757832191386,6.62,246.85,246.75,7.02]
[1757832194989,1.29913703,246.82,246.75,7.02]
[1757832195193,6.62,246.81,246.75,7.02]
[1757832197087,6.62,246.81,246.71,7.02]
[1757832217802,1.29913703,246.78,246.65,7.0]
[1757832218102,6.82,246.73,246.65,7.0]
[1757832218296,15.12,246.73,246.58,7.0]
[1757832218494,6.82,246.69,246.58,7.0]
[1757832222103,44.62,246.69,246.58,7.0]
[1757832223502,6.82,246.69,246.58,7.0]
[1757832223702,72.66,246.69,246.58,7.0]
[1757832224912,6.82,246.69,246.58,7.0]
[1757832228707,6.82,246.69,246.51,1.29913703]
[1757832228908,6.82,246.65,246.52,7.0]
[1757832230916,6.82,246.61,246.5,451.22701955]
[1757832231118,6.82,246.6,246.5,451.22701955]
[1757832231311,6.82,246.6,246.51,7.0]
[1757832234313,6.77,246.6,246.5,451.22701955]
[1757832234513,39.02,246.59,246.51,6.91]
[1757832236020,6.77,246.57,246.5,451.22701955]
[1757832237219,6.77,246.57,246.51,6.91]
[1757832242318,12.6,246.6,246.51,6.91]
[1757832242518,7.84913703,246.61,246.51,6.91]
[1757832242720,32.20913703,246.61,246.51,6.91]
[1757832243616,7.84913703,246.61,246.51,6.91]
[1757832243819,43.36913703,246.61,246.51,6.91]
[1757832244017,53.96913703,246.61,246.51,6.91]
[1757832244319,64.04913703,246.61,246.51,6.91]
[1757832244516,0.83340877,246.59,246.51,6.91]
[1757832249621,6.55,246.55,246.5,451.22701955]
[1757832250823,0.83340877,246.56,246.5,451.22701955]
[1757832251023,6.55,246.55,246.5,451.22701955]
[1757832251222,7.38340877,246.56,246.5,451.22701955]
[1757832252726,7.38340877,246.56,246.51,6.46]
[1757832252923,7.38340877,246.56,246.5,457.68701955]
[1757832254225,6.55,246.69,246.5,451.22701955]